fUSD/lending_fUSD_20250521
["ID","MTS","AMOUNT","RATE_DAILY","PERIOD"]
[361849006,1747838864712,3500.0,0.00042272,30]
[361849007,1747838885836,500.0,0.00042272,120]
[361849008,1747838894376,197.82862075,0.00042272,30]
[361849009,1747838915880,300.0,0.00042272,30]
[361849011,1747839000897,200.0,0.00027,120]
[361849027,1747839032177,-493.49757997,0.00021392,2]
[361849028,1747839032193,-200.0,0.00021392,2]
[361849029,1747839032202,-200.0,0.00022635,2]
[361849030,1747839032214,-200.0,0.00023531,2]
[361849031,1747839032224,-200.0,0.00023531,2]
[361849032,1747839032234,-200.0,0.00023531,2]
[361849033,1747839032244,-500.0,0.00024685,2]
[361849034,1747839032253,-170.86,0.00025714,2]
[361849035,1747839032263,-1200.0,0.00027204,2]
[361849036,1747839032273,-263.68242003,0.00027205,2]
[361849037,1747839032285,-572.39786025,0.00027205,2]
[361849038,1747839032395,-434.545005,0.00027205,2]
[361849039,1747839032418,-4828.52050172,0.00027205,2]
[361849040,1747839032428,-500.0,0.00027342,2]
[361849041,1747839032438,-300.0,0.0002755,2]
[361849042,1747839032448,-200.0,0.00028,120]
[361849043,1747839032458,-300.0,0.00028666,2]
[361849044,1747839032469,-1156.13,0.00028667,2]
[361849045,1747839032482,-1636.18,0.00028667,2]
[361849046,1747839032492,-999.99,0.00028667,2]
[361849047,1747839032501,-150.99,0.00028667,2]
[361849048,1747839032511,-7587.21341464,0.00028667,2]
[361849049,1747839032526,-970.95802374,0.00028667,2]
[361849050,1747839032541,-308.84060142,0.00028667,2]
[361849051,1747839032553,-1132.9779602,0.00028667,2]
[361849052,1747839032563,-2703.84,0.00028667,5]
[361849053,1747839032572,-208.36379575,0.000289,20]
[361849054,1747839032582,-207.0,0.00028981,2]
[361849055,1747839032592,-151.8,0.00029,2]
[361849056,1747839032601,-500.0,0.00029315,2]
[361849057,1747839032611,-1680.0,0.00029534,2]
[361849058,1747839032620,-435.37,0.00029569,2]
[361849059,1747839032629,-500.0,0.00029589,30]
[361849060,1747839032639,-150.0,0.00029641,2]
[361849061,1747839032648,-250.0,0.00029654,2]
[361849062,1747839032658,-1608.67,0.00029669,2]
[361849063,1747839032667,-367.39,0.00029826,2]
[361849064,1747839032677,-500.0,0.00029863,30]
[361849065,1747839032687,-187.93,0.00029892,2]
[361849066,1747839032697,-187.93,0.000299,2]
[361849067,1747839032706,-187.93,0.00029908,2]
[361849068,1747839032716,-187.93,0.00029916,2]
[361849069,1747839032726,-187.93,0.00029923,2]
[361849070,1747839032749,-187.93,0.00029931,2]
[361849072,1747839032759,-187.93,0.00029939,2]
[361849074,1747839032770,-187.93,0.00029947,2]
[361849076,1747839032780,-187.93,0.00029955,2]
[361849078,1747839032790,-187.93,0.00029963,2]
[361849080,1747839032800,-187.93,0.00029971,2]
[361849082,1747839032812,-164.93,0.00029972,2]
[361849084,1747839032823,-187.93,0.00029978,2]
[361849087,1747839032833,-187.93,0.00029986,2]
[361849089,1747839032844,-187.93,0.00029994,2]
[361849091,1747839032854,-600.0,0.0003,120]
[361849092,1747839032864,-187.93,0.00030002,2]
[361849093,1747839032875,-187.93,0.0003001,2]
[361849094,1747839032886,-187.93,0.00030018,2]
[361849095,1747839032896,-455.57,0.00030024,120]
[361849096,1747839032907,-187.93,0.00030026,2]
[361849097,1747839032918,-187.93,0.00030034,2]
[361849098,1747839032928,-187.93,0.00030041,2]
[361849099,1747839032938,-702.96,0.00030045,2]
[361849100,1747839032949,-4150.34,0.00030057,2]
[361849101,1747839032962,-200.0,0.00030067,2]
[361849102,1747839032972,-183.31,0.0003007,2]
[361849103,1747839032983,-1000.0,0.00030077,2]
[361849104,1747839032993,-4000.0,0.00030135,2]
[361849105,1747839033003,-523.82199375,0.00030136,30]
[361849106,1747839033013,-1043.58431814,0.0003017,2]
[361849107,1747839033023,-23900.0,0.0003018,2]
[361849108,1747839033034,-632.56,0.00030403,2]
[361849109,1747839033045,-208.36379575,0.00030445,23]
[361849110,1747839033055,-3151.36,0.00030586,2]
[361849111,1747839033066,-253.34,0.00030685,2]
[361849112,1747839033078,-189.6,0.00030698,2]
[361849113,1747839033089,-1156.13,0.00030931,2]
[361849114,1747839033099,-163.44,0.00031444,2]
[361849115,1747839033110,-207.0,0.00031566,6]
[361849116,1747839033121,-1872.3,0.00031691,2]
[361849117,1747839033132,-253.34,0.00031836,2]
[361849118,1747839033143,-151.33,0.00031975,2]
[361849119,1747839033154,-208.36379575,0.00031991,26]
[361849120,1747839033164,-600.0,0.00032,120]
[361849121,1747839033175,-151.33,0.00032055,2]
[361849122,1747839033186,-720.0,0.00032064,3]
[361849123,1747839033196,-151.33,0.00032135,2]
[361849124,1747839033208,-1077.657273,0.00032671,4]
[361849125,1747839033218,-1869.0,0.000327,7]
[361849126,1747839033229,-173.075,0.00032758,33]
[361849127,1747839033239,-1278.05740562,0.00032775,2]
[361849128,1747839033251,-895.24957424,0.00032776,2]
[361849129,1747839033261,-800.0,0.000328,11]
[361849130,1747839033272,-26866.9641278,0.00032866,2]
[361849131,1747839033283,-500.0,0.00032873,5]
[361849132,1747839033293,-500.0,0.00032873,5]
[361849133,1747839033303,-500.0,0.00032873,5]
[361849134,1747839033313,-500.0,0.00032873,5]
[361849135,1747839033323,-500.0,0.00032873,5]
[361849136,1747839033334,-501.46591193,0.00032873,2]
[361849137,1747839033344,-500.0,0.00032873,5]
[361849138,1747839033354,-500.0,0.00032875,2]
[361849139,1747839033363,-500.0,0.00032875,2]
[361849140,1747839033374,-500.0,0.00032875,2]
[361849141,1747839033384,-500.0,0.00032875,2]
[361849142,1747839033395,-500.0,0.00032875,2]
[361849143,1747839033404,-500.0,0.00032875,2]
[361849144,1747839033414,-500.0,0.00032875,2]
[361849145,1747839033424,-500.0,0.00032875,2]
[361849146,1747839033435,-500.0,0.00032875,2]
[361849147,1747839033446,-500.0,0.00032875,2]
[361849148,1747839033457,-500.0,0.00032875,2]
[361849149,1747839033471,-500.0,0.00032875,2]
[361849150,1747839033481,-527.41659405,0.00032875,2]
[361849151,1747839033492,-500.0,0.00032875,2]
[361849152,1747839033503,-500.0,0.00032875,2]
[361849153,1747839033515,-500.0,0.00032875,2]
[361849154,1747839033526,-500.0,0.00032875,2]
[361849155,1747839033537,-500.0,0.00032875,2]
[361849156,1747839033549,-500.0,0.00032875,2]
[361849157,1747839033560,-500.0,0.00032875,2]
[361849158,1747839033571,-500.0,0.00032875,2]
[361849159,1747839033582,-500.0,0.00032875,2]
[361849160,1747839033592,-499.99999999,0.00032875,2]
[361849161,1747839033602,-500.0,0.00032875,2]
[361849162,1747839033612,-500.0,0.00032875,2]
[361849163,1747839033623,-500.0,0.00032875,2]
[361849164,1747839033634,-500.0,0.00032875,2]
[361849165,1747839033643,-250.0,0.00032875,2]
[361849166,1747839033654,-152.84,0.00032875,2]
[361849167,1747839033664,-255.161973,0.00032876,5]
[361849168,1747839033675,-232.79503237,0.00032876,5]
[361849169,1747839033685,-420.0,0.00032876,5]
[361849170,1747839033695,-187.44423182,0.00032876,2]
[361849171,1747839033707,-420.0,0.00032876,5]
[361849172,1747839033717,-420.0,0.00032876,5]
[361849173,1747839033728,-420.0,0.00032876,5]
[361849174,1747839033739,-666.84,0.00032876,5]
[361849175,1747839033749,-420.0,0.00032876,5]
[361849176,1747839033759,-958.6,0.00032876,5]
[361849177,1747839033770,-299.22795996,0.00032876,5]
[361849178,1747839033780,-706.21,0.00032876,5]
[361849179,1747839033791,-904.98,0.00032876,5]
[361849180,1747839033801,-571.74,0.00032876,5]
[361849181,1747839033811,-554.57,0.00032876,5]
[361849182,1747839033821,-420.0,0.00032876,5]
[361849183,1747839033831,-420.0,0.00032876,5]
[361849184,1747839033842,-420.0,0.00032876,5]
[361849185,1747839033855,-1339.7,0.00032876,5]
[361849186,1747839033866,-642.41,0.00032876,5]
[361849187,1747839033876,-449.4,0.00032876,5]
[361849188,1747839033887,-1040.26,0.00032876,5]
[361849189,1747839033898,-420.0,0.00032876,5]
[361849190,1747839033910,-420.0,0.00032876,5]
[361849191,1747839033921,-749.1,0.00032876,5]
[361849192,1747839033931,-1368.92,0.00032876,5]
[361849193,1747839033942,-420.0,0.00032876,5]
[361849194,1747839033953,-613.88,0.00032876,5]
[361849195,1747839033967,-420.0,0.00032876,5]
[361849196,1747839033978,-420.0,0.00032876,5]
[361849197,1747839033989,-420.0,0.00032876,5]
[361849198,1747839034000,-420.0,0.00032876,5]
[361849199,1747839034011,-420.0,0.00032876,5]
[361849200,1747839034022,-420.0,0.00032876,5]
[361849201,1747839034034,-420.0,0.00032876,5]
[361849202,1747839034044,-188.39983963,0.00032876,5]
[361849203,1747839034054,-3171.92,0.00032876,5]
[361849204,1747839034064,-420.0,0.00032876,5]
[361849205,1747839034074,-420.0,0.00032876,5]
[361849206,1747839034085,-420.0,0.00032876,5]
[361849207,1747839034096,-1272.66,0.00032876,5]
[361849208,1747839034107,-420.0,0.00032876,5]
[361849209,1747839034118,-590.36,0.00032876,5]
[361849210,1747839034129,-631.52,0.00032876,5]
[361849211,1747839034139,-420.0,0.00032876,5]
[361849212,1747839034150,-1718.07,0.00032876,5]
[361849213,1747839034160,-420.0,0.00032876,5]
[361849214,1747839034171,-420.0,0.00032876,5]
[361849215,1747839034182,-2376.16,0.00032876,5]
[361849216,1747839034193,-2743.07,0.00032876,5]
[361849217,1747839034203,-420.0,0.00032876,5]
[361849218,1747839034215,-1889.76,0.00032876,5]
[361849219,1747839034226,-2692.76,0.00032876,5]
[361849220,1747839034237,-420.0,0.00032876,5]
[361849221,1747839034247,-420.0,0.00032876,2]
[361849222,1747839034257,-875.24,0.00032876,5]
[361849223,1747839034267,-420.0,0.00032876,5]
[361849224,1747839034278,-420.0,0.00032876,5]
[361849225,1747839034289,-972.21,0.00032876,5]
[361849226,1747839034300,-420.0,0.00032876,2]
[361849227,1747839034310,-420.0,0.00032876,5]
[361849228,1747839034322,-421.08,0.00032876,5]
[361849229,1747839034333,-2058.36,0.00032876,5]
[361849230,1747839034344,-542.63,0.00032876,5]
[361849231,1747839034355,-188.59,0.00032876,5]
[361849232,1747839034365,-420.0,0.00032876,5]
[361849233,1747839034375,-420.0,0.00032876,5]
[361849234,1747839034386,-420.0,0.00032876,5]
[361849235,1747839034396,-1177.82,0.00032876,5]
[361849236,1747839034406,-640.12,0.00032876,5]
[361849237,1747839034416,-1743.96,0.00032876,5]
[361849238,1747839034427,-512.05,0.00032876,5]
[361849239,1747839034437,-420.0,0.00032876,5]
[361849240,1747839034447,-420.0,0.00032876,5]
[361849241,1747839034457,-154.316138,0.00032876,5]
[361849242,1747839034467,-154.316138,0.00032876,5]
[361849243,1747839034479,-569.07,0.00032876,5]
[361849244,1747839034490,-757.0,0.00032876,5]
[361849245,1747839034501,-420.0,0.00032876,5]
[361849246,1747839034511,-2348.65,0.00032876,5]
[361849247,1747839034523,-1039.37,0.00032876,5]
[361849248,1747839034534,-1317.91,0.00032876,5]
[361849249,1747839034544,-1885.06,0.00032876,5]
[361849250,1747839034554,-1405.21,0.00032876,5]
[361849251,1747839034567,-632.54,0.00032876,5]
[361849252,1747839034578,-420.0,0.00032876,5]
[361849253,1747839034588,-216.39147048,0.00032876,5]
[361849254,1747839034598,-766.52,0.00032876,5]
[361849255,1747839034608,-371.28018405,0.00032876,5]
[361849256,1747839034618,-420.0,0.00032876,5]
[361849257,1747839034629,-1282.81,0.00032876,5]
[361849258,1747839034640,-631.38,0.00032876,5]
[361849259,1747839034650,-1114.67,0.00032876,5]
[361849260,1747839034660,-695.92,0.00032876,5]
[361849261,1747839034670,-420.0,0.00032876,5]
[361849262,1747839034680,-420.0,0.00032876,5]
[361849263,1747839034691,-920.35,0.00032876,5]
[361849264,1747839034701,-420.0,0.00032876,5]
[361849265,1747839034712,-405.65,0.00032876,5]
[361849266,1747839034722,-506.09,0.00032876,5]
[361849267,1747839034733,-541.62,0.00032876,5]
[361849268,1747839034743,-659.24,0.00032876,5]
[361849269,1747839034759,-709.83,0.00032876,5]
[361849270,1747839034771,-4092.54,0.00032876,5]
[361849271,1747839034782,-628.37,0.00032876,5]
[361849272,1747839034793,-221.79099145,0.00032876,5]
[361849273,1747839034805,-585.39,0.00032876,5]
[361849274,1747839034817,-587.25,0.00032876,5]
[361849275,1747839034827,-420.0,0.00032876,5]
[361849276,1747839034837,-420.0,0.00032876,5]
[361849277,1747839034847,-420.0,0.00032876,5]
[361849278,1747839034858,-420.0,0.00032876,2]
[361849279,1747839034869,-2025.63,0.00032876,5]
[361849280,1747839034879,-646.8,0.00032876,5]
[361849281,1747839034890,-2417.49,0.00032876,5]
[361849282,1747839034900,-420.0,0.00032876,5]
[361849283,1747839034910,-645.79,0.00032876,5]
[361849284,1747839034921,-420.0,0.00032876,5]
[361849285,1747839034931,-825.03,0.00032876,5]
[361849286,1747839034941,-859.74,0.00032876,5]
[361849287,1747839034952,-420.0,0.00032876,5]
[361849288,1747839034967,-420.0,0.00032876,5]
[361849289,1747839034977,-420.0,0.00032876,5]
[361849290,1747839034988,-186.28016037,0.00032876,5]
[361849291,1747839034999,-420.0,0.00032876,5]
[361849292,1747839035009,-510.14,0.00032876,5]
[361849293,1747839035020,-315.8717221,0.00032876,5]
[361849294,1747839035031,-1985.75,0.00032876,5]
[361849295,1747839035041,-598.94,0.00032876,5]
[361849296,1747839035051,-420.0,0.00032876,5]
[361849297,1747839035060,-420.0,0.00032876,5]
[361849298,1747839035070,-420.0,0.00032876,5]
[361849299,1747839035081,-420.0,0.00032876,5]
[361849300,1747839035091,-420.0,0.00032876,5]
[361849301,1747839035101,-420.0,0.00032876,5]
[361849302,1747839035111,-539.82,0.00032876,5]
[361849303,1747839035122,-420.0,0.00032876,5]
[361849304,1747839035131,-420.0,0.00032876,5]
[361849305,1747839035142,-553.56,0.00032876,5]
[361849306,1747839035152,-420.0,0.00032876,5]
[361849307,1747839035162,-420.0,0.00032876,5]
[361849308,1747839035173,-673.89,0.00032876,5]
[361849309,1747839035183,-534.77,0.00032876,5]
[361849310,1747839035194,-420.0,0.00032876,5]
[361849311,1747839035204,-1199.82,0.00032876,5]
[361849312,1747839035216,-420.0,0.00032876,5]
[361849313,1747839035226,-630.13,0.00032876,5]
[361849314,1747839035236,-420.0,0.00032876,5]
[361849315,1747839035246,-420.0,0.00032876,5]
[361849316,1747839035256,-840.77,0.00032876,5]
[361849317,1747839035266,-420.0,0.00032876,5]
[361849318,1747839035276,-582.14,0.00032876,5]
[361849319,1747839035287,-420.0,0.00032876,5]
[361849320,1747839035297,-420.0,0.00032876,5]
[361849321,1747839035308,-811.34,0.00032876,5]
[361849322,1747839035318,-420.0,0.00032876,5]
[361849323,1747839035328,-420.0,0.00032876,5]
[361849324,1747839035338,-420.0,0.00032876,5]
[361849325,1747839035348,-1265.92,0.00032876,5]
[361849326,1747839035358,-568.76,0.00032876,5]
[361849327,1747839035369,-420.0,0.00032876,5]
[361849328,1747839035379,-813.34,0.00032876,5]
[361849329,1747839035389,-420.0,0.00032876,5]
[361849330,1747839035399,-420.0,0.00032876,5]
[361849331,1747839035408,-420.0,0.00032876,5]
[361849332,1747839035418,-420.0,0.00032876,5]
[361849333,1747839035428,-420.0,0.00032876,5]
[361849334,1747839035438,-806.99,0.00032876,5]
[361849335,1747839035448,-624.68,0.00032876,5]
[361849336,1747839035461,-420.0,0.00032876,5]
[361849337,1747839035472,-420.0,0.00032876,5]
[361849338,1747839035485,-420.0,0.00032876,5]
[361849339,1747839035495,-1139.5,0.00032876,5]
[361849340,1747839035505,-420.0,0.00032876,5]
[361849341,1747839035517,-420.0,0.00032876,5]
[361849342,1747839035527,-460.68,0.00032876,5]
[361849343,1747839035537,-383.17098456,0.00032876,5]
[361849344,1747839035547,-420.0,0.00032876,5]
[361849345,1747839035559,-420.0,0.00032876,5]
[361849346,1747839035569,-9973.18,0.00032876,5]
[361849347,1747839035579,-420.0,0.00032876,5]
[361849348,1747839035589,-278.84146109,0.00032876,5]
[361849349,1747839035599,-420.0,0.00032876,5]
[361849350,1747839035609,-420.0,0.00032876,5]
[361849351,1747839035619,-1104.38,0.00032876,5]
[361849352,1747839035629,-420.0,0.00032876,5]
[361849353,1747839035639,-1634.05,0.00032876,5]
[361849354,1747839035650,-2097.5,0.00032876,5]
[361849355,1747839035660,-1233.8,0.00032876,5]
[361849356,1747839035670,-558.78732212,0.00032876,5]
[361849357,1747839035680,-748.31,0.00032876,5]
[361849358,1747839035690,-420.0,0.00032876,5]
[361849359,1747839035700,-420.0,0.00032876,5]
[361849360,1747839035711,-455.61,0.00032876,5]
[361849361,1747839035722,-564.16,0.00032876,5]
[361849362,1747839035732,-2938.52,0.00032876,5]
[361849363,1747839035742,-420.0,0.00032876,5]
[361849364,1747839035751,-420.0,0.00032876,5]
[361849365,1747839035761,-2607.4,0.00032876,5]
[361849366,1747839035771,-911.96,0.00032876,5]
[361849367,1747839035782,-1133.92,0.00032876,5]
[361849368,1747839035792,-585.26,0.00032876,5]
[361849369,1747839035802,-555.55555,0.00032876,2]
[361849370,1747839035812,-1250.97,0.00032876,5]
[361849371,1747839035822,-420.0,0.00032876,5]
[361849372,1747839035832,-420.0,0.00032876,5]
[361849373,1747839035842,-420.0,0.00032876,5]
[361849374,1747839035852,-420.0,0.00032876,5]
[361849375,1747839035862,-420.0,0.00032876,5]
[361849376,1747839035872,-4833.86,0.00032876,5]
[361849377,1747839035882,-9413.14,0.00032876,5]
[361849378,1747839035892,-537.83987271,0.00032876,5]
[361849379,1747839035902,-420.0,0.00032876,5]
[361849380,1747839035913,-420.0,0.00032876,5]
[361849381,1747839035924,-266.43,0.00032876,5]
[361849382,1747839035935,-420.0,0.00032876,5]
[361849383,1747839035947,-10719.3,0.00032876,5]
[361849384,1747839035960,-420.0,0.00032876,5]
[361849385,1747839035973,-420.0,0.00032876,5]
[361849386,1747839035985,-881.25,0.00032876,5]
[361849387,1747839035996,-420.0,0.00032876,5]
[361849388,1747839036007,-836.38,0.00032876,5]
[361849389,1747839036018,-4645.71,0.00032876,5]
[361849390,1747839036029,-420.0,0.00032876,5]
[361849391,1747839036040,-420.0,0.00032876,5]
[361849392,1747839036049,-420.0,0.00032876,5]
[361849393,1747839036060,-366.8167604,0.00032876,5]
[361849394,1747839036071,-452.21364496,0.00032876,5]
[361849395,1747839036082,-672.32,0.00032876,5]
[361849396,1747839036092,-420.0,0.00032876,5]
[361849397,1747839036102,-11161.61,0.00032876,5]
[361849398,1747839036112,-422.39,0.00032876,5]
[361849399,1747839036123,-420.0,0.00032876,5]
[361849400,1747839036133,-2595.07,0.00032876,5]
[361849401,1747839036143,-829.76,0.00032876,5]
[361849402,1747839036154,-21519.43,0.00032876,5]
[361849403,1747839036165,-420.0,0.00032876,5]
[361849404,1747839036175,-3182.06,0.00032876,5]
[361849405,1747839036186,-2070.21,0.00032876,5]
[361849406,1747839036195,-755.95,0.00032876,5]
[361849407,1747839036211,-2028.75,0.00032876,5]
[361849408,1747839036222,-420.0,0.00032876,5]
[361849409,1747839036233,-420.0,0.00032876,5]
[361849410,1747839036243,-420.0,0.00032876,5]
[361849411,1747839036253,-420.0,0.00032876,5]
[361849412,1747839036263,-542.19,0.00032876,5]
[361849413,1747839036272,-1685.25,0.00032876,5]
[361849414,1747839036282,-214.31,0.00032876,5]
[361849415,1747839036291,-420.0,0.00032876,5]
[361849416,1747839036301,-420.0,0.00032876,5]
[361849417,1747839036312,-420.0,0.00032876,5]
[361849418,1747839036321,-450.91593177,0.00032876,2]
[361849419,1747839036331,-751.05,0.00032876,5]
[361849420,1747839036341,-1452.67,0.00032876,5]
[361849421,1747839036351,-420.0,0.00032876,5]
[361849422,1747839036361,-420.0,0.00032876,5]
[361849423,1747839036372,-951.49,0.00032876,5]
[361849424,1747839036382,-1202.71,0.00032876,5]
[361849425,1747839036392,-2569.97,0.00032876,5]
[361849426,1747839036402,-420.0,0.00032876,5]
[361849427,1747839036411,-420.0,0.00032876,5]
[361849428,1747839036422,-599.19,0.00032876,5]
[361849429,1747839036432,-420.0,0.00032876,5]
[361849430,1747839036443,-420.0,0.00032876,5]
[361849431,1747839036453,-1621.51,0.00032876,5]
[361849432,1747839036470,-420.0,0.00032876,5]
[361849433,1747839036710,-2764.71,0.00032876,5]
[361849434,1747839036720,-1476.5,0.00032876,5]
[361849435,1747839036731,-420.0,0.00032876,5]
[361849436,1747839036741,-420.0,0.00032876,5]
[361849437,1747839036752,-420.0,0.00032876,5]
[361849438,1747839036762,-420.0,0.00032876,5]
[361849439,1747839036773,-420.0,0.00032876,5]
[361849440,1747839036783,-43328.23,0.00032876,5]
[361849441,1747839036794,-420.0,0.00032876,5]
[361849442,1747839036804,-15871.97,0.00032876,2]
[361849443,1747839036814,-501.63,0.00032876,5]
[361849444,1747839036824,-1369.26,0.00032876,5]
[361849445,1747839036834,-2191.25,0.00032876,5]
[361849446,1747839036845,-2978.67,0.00032876,5]
[361849447,1747839036856,-589.18,0.00032876,5]
[361849448,1747839036866,-420.0,0.00032876,5]
[361849449,1747839036876,-517.43,0.00032876,5]
[361849450,1747839036887,-400.17201026,0.00032876,2]
[361849451,1747839036897,-420.0,0.00032876,5]
[361849452,1747839036907,-719.92,0.00032876,5]
[361849453,1747839036916,-976.25,0.00032876,5]
[361849454,1747839036928,-1263.94,0.00032876,5]
[361849455,1747839036940,-420.0,0.00032876,5]
[361849456,1747839036951,-1211.16602188,0.00032876,5]
[361849457,1747839036972,-619.94397812,0.00032876,5]
[361849458,1747839036982,-420.0,0.00032876,5]
[361849459,1747839036992,-1165.18,0.00032876,5]
[361849460,1747839037002,-420.0,0.00032876,5]
[361849461,1747839037012,-1062.62,0.00032876,5]
[361849462,1747839037022,-420.0,0.00032876,5]
[361849463,1747839037032,-187.66897596,0.00032876,5]
[361849464,1747839037042,-724.9,0.00032876,5]
[361849465,1747839037051,-420.0,0.00032876,5]
[361849466,1747839037061,-420.0,0.00032876,5]
[361849467,1747839037071,-987.01,0.00032876,5]
[361849468,1747839037081,-420.0,0.00032876,5]
[361849469,1747839037091,-3937.78,0.00032876,5]
[361849470,1747839037102,-420.0,0.00032876,5]
[361849471,1747839037113,-573.3,0.00032876,5]
[361849472,1747839037123,-775.47,0.00032876,5]
[361849473,1747839037134,-420.0,0.00032876,2]
[361849474,1747839037144,-420.0,0.00032876,5]
[361849475,1747839037154,-420.0,0.00032876,5]
[361849476,1747839037163,-420.0,0.00032876,5]
[361849477,1747839037174,-1523.31,0.00032876,5]
[361849478,1747839037184,-420.0,0.00032876,5]
[361849479,1747839037194,-484.0,0.00032876,5]
[361849480,1747839037204,-1776.7,0.00032876,5]
[361849481,1747839037217,-420.0,0.00032876,5]
[361849482,1747839037227,-420.0,0.00032876,5]
[361849483,1747839037236,-163.1489544,0.00032876,5]
[361849484,1747839037247,-5300.08,0.00032876,5]
[361849485,1747839037257,-420.0,0.00032876,5]
[361849486,1747839037267,-420.0,0.00032876,5]
[361849487,1747839037278,-3222.256,0.00032877,33]
[361849488,1747839037288,-304.22,0.00032897,2]
[361849489,1747839037299,-301.02,0.00032897,2]
[361849490,1747839037308,-303.98,0.00032897,2]
[361849491,1747839037320,-301.1,0.00032897,2]
[361849492,1747839037330,-1600.0,0.000329,12]
[361849493,1747839037341,-300.63,0.00032936,2]
[361849494,1747839037351,-300.87,0.00032936,2]
[361849495,1747839037362,-302.71,0.00032947,2]
[361849496,1747839037372,-302.17,0.00032947,2]
[361849497,1747839037383,-300.66,0.00032947,2]
[361849498,1747839037393,-301.38,0.00032947,2]
[361849499,1747839037404,-253.34,0.00032987,2]
[361849500,1747839037414,-966.26232294,0.0003305,2]
[361849501,1747839037425,-5000.0,0.0003305,2]
[361849502,1747839037435,-304.71,0.00033059,2]
[361849503,1747839037446,-303.35,0.00033087,2]
[361849504,1747839037455,-300.01,0.00033087,2]
[361849505,1747839037469,-8224.88569696,0.0003312,2]
[361849506,1747839037480,-16449.7713939,0.0003313,2]
[361849507,1747839037492,-2056.22142424,0.00033131,2]
[361849508,1747839037502,-305.58,0.00033137,2]
[361849509,1747839037513,-304.83,0.00033137,2]
[361849510,1747839037523,-37011.9856363,0.0003314,2]
[361849511,1747839037532,-1278.05740554,0.0003314,2]
[361849512,1747839037543,-895.24957422,0.00033141,2]
[361849513,1747839037554,-1043.10342137,0.00033149,30]
[361849514,1747839037564,-500.0,0.00033149,2]
[361849515,1747839037575,-420.0,0.0003315,5]
[361849516,1747839037585,-420.0,0.0003315,5]
[361849517,1747839037596,-420.0,0.0003315,5]
[361849518,1747839037605,-420.0,0.0003315,5]
[361849519,1747839037616,-666.84,0.0003315,5]
[361849520,1747839037626,-420.0,0.0003315,5]
[361849521,1747839037637,-958.6,0.0003315,5]
[361849522,1747839037647,-706.21,0.0003315,5]
[361849523,1747839037657,-904.98,0.0003315,5]
[361849524,1747839037667,-571.74,0.0003315,5]
[361849525,1747839037678,-554.57,0.0003315,5]
[361849526,1747839037688,-420.0,0.0003315,5]
[361849527,1747839037698,-420.0,0.0003315,5]
[361849528,1747839037708,-420.0,0.0003315,5]
[361849529,1747839037717,-1339.7,0.0003315,5]
[361849530,1747839037730,-642.41,0.0003315,5]
[361849531,1747839037740,-1040.26,0.0003315,5]
[361849532,1747839037749,-420.0,0.0003315,5]